fUSD/lending_fUSD_20240520
["ID","MTS","AMOUNT","RATE_DAILY","PERIOD"]
[327594186,1716246690553,-500.0,0.00039452,6]
[327594187,1716246690562,-1339.38,0.00039452,6]
[327594188,1716246690571,-500.0,0.00039452,6]
[327594189,1716246690580,-511.34,0.00039452,6]
[327594190,1716246690589,-524.18,0.00039452,6]
[327594191,1716246690599,-500.0,0.00039452,6]
[327594192,1716246690608,-623.68,0.00039452,6]
[327594193,1716246690617,-621.04,0.00039452,6]
[327594194,1716246690626,-500.0,0.00039452,6]
[327594195,1716246690635,-874.24,0.00039452,6]
[327594196,1716246690644,-500.0,0.00039452,6]
[327594197,1716246690653,-608.02,0.00039452,6]
[327594198,1716246690663,-500.0,0.00039452,6]
[327594199,1716246690672,-836.02,0.00039452,6]
[327594200,1716246690681,-500.0,0.00039452,6]
[327594201,1716246690690,-500.0,0.00039452,6]
[327594202,1716246690699,-500.0,0.00039452,6]
[327594203,1716246690708,-1078.46,0.00039452,6]
[327594204,1716246690717,-235.44684786,0.00039452,6]
[327594205,1716246690726,-780.25,0.00039452,6]
[327594206,1716246690736,-500.0,0.00039452,6]
[327594207,1716246690745,-1417.4,0.00039452,6]
[327594208,1716246690754,-500.0,0.00039452,6]
[327594209,1716246690764,-820.58,0.00039452,6]
[327594210,1716246690774,-500.0,0.00039452,6]
[327594211,1716246690783,-500.0,0.00039452,6]
[327594212,1716246690795,-500.0,0.00039452,6]
[327594213,1716246690804,-500.0,0.00039452,6]
[327594214,1716246690814,-500.0,0.00039452,6]
[327594215,1716246690823,-515.32,0.00039452,6]
[327594216,1716246690833,-1256.05,0.00039452,6]
[327594217,1716246690842,-1339.11,0.00039452,6]
[327594218,1716246690851,-516.67,0.00039452,6]
[327594219,1716246690860,-504.52,0.00039452,6]
[327594220,1716246690870,-500.0,0.00039452,6]
[327594221,1716246690879,-500.0,0.00039452,6]
[327594222,1716246690888,-500.0,0.00039452,6]
[327594223,1716246690897,-500.0,0.00039452,6]
[327594224,1716246690907,-500.0,0.00039452,6]
[327594225,1716246690917,-528.0,0.00039452,6]
[327594226,1716246690926,-1545.28,0.00039452,6]
[327594227,1716246690936,-500.0,0.00039452,6]
[327594228,1716246690946,-500.0,0.00039452,6]
[327594229,1716246690955,-500.0,0.00039452,6]
[327594230,1716246690965,-500.0,0.00039452,6]
[327594231,1716246690974,-500.0,0.00039452,6]
[327594232,1716246690983,-666.77,0.00039452,6]
[327594233,1716246690993,-542.27,0.00039452,6]
[327594234,1716246691002,-1009.65,0.00039452,6]
[327594235,1716246691011,-500.0,0.00039452,6]
[327594236,1716246691021,-500.0,0.00039452,6]
[327594237,1716246691031,-1368.48,0.00039452,6]
[327594238,1716246691040,-500.0,0.00039452,6]
[327594239,1716246691050,-548.01,0.00039452,6]
[327594240,1716246691059,-500.0,0.00039452,6]
[327594241,1716246691068,-695.19,0.00039452,6]
[327594242,1716246691077,-590.63,0.00039452,6]
[327594243,1716246691087,-500.0,0.00039452,6]
[327594244,1716246691097,-545.77,0.00039452,6]
[327594245,1716246691107,-593.36,0.00039452,6]
[327594246,1716246691116,-1871.27,0.00039452,6]
[327594247,1716246691125,-1000.0,0.00039452,6]
[327594248,1716246691136,-809.62,0.00039452,6]
[327594249,1716246691146,-2843.07,0.00039452,6]
[327594250,1716246691155,-680.07,0.00039452,6]
[327594251,1716246691165,-610.86,0.00039452,6]
[327594252,1716246691174,-500.0,0.00039452,6]
[327594253,1716246691184,-500.0,0.00039452,6]
[327594254,1716246691193,-874.07,0.00039452,6]
[327594255,1716246691203,-500.0,0.00039452,6]
[327594256,1716246691212,-500.0,0.00039452,6]
[327594257,1716246691222,-500.0,0.00039452,6]
[327594258,1716246691232,-965.17,0.00039452,6]
[327594259,1716246691242,-500.0,0.00039452,6]
[327594260,1716246691253,-500.0,0.00039452,6]
[327594261,1716246691263,-500.0,0.00039452,6]
[327594262,1716246691274,-1657.66,0.00039452,6]
[327594263,1716246691286,-1928.83,0.00039452,6]
[327594264,1716246691298,-214.80952315,0.00039452,6]
[327594265,1716246691308,-377.27954309,0.00039452,6]
[327594266,1716246691319,-512.56,0.00039452,6]
[327594267,1716246691329,-500.0,0.00039452,6]
[327594268,1716246691339,-713.35,0.00039452,6]
[327594269,1716246691349,-500.0,0.00039452,6]
[327594270,1716246691361,-905.25,0.00039452,6]
[327594271,1716246691371,-500.0,0.00039452,6]
[327594272,1716246691380,-655.02,0.00039452,6]
[327594273,1716246691390,-2589.9,0.00039452,6]
[327594274,1716246691400,-750.78,0.00039452,6]
[327594275,1716246691410,-535.28,0.00039452,6]
[327594276,1716246691420,-627.03,0.00039452,6]
[327594277,1716246691429,-1029.48,0.00039452,6]
[327594278,1716246691439,-500.0,0.00039452,6]
[327594279,1716246691450,-500.0,0.00039452,6]
[327594280,1716246691460,-500.0,0.00039452,6]
[327594281,1716246691470,-500.0,0.00039452,6]
[327594282,1716246691479,-500.0,0.00039452,6]
[327594283,1716246691489,-500.0,0.00039452,6]
[327594284,1716246691499,-1245.12,0.00039452,6]
[327594285,1716246691509,-2349.36,0.00039452,6]
[327594286,1716246691518,-524.15,0.00039452,6]
[327594287,1716246691528,-500.0,0.00039452,6]
[327594288,1716246691538,-500.0,0.00039452,6]
[327594289,1716246691549,-771.31,0.00039452,6]
[327594290,1716246691559,-155.61,0.00039452,6]
[327594291,1716246691569,-500.0,0.00039452,6]
[327594292,1716246691578,-1922.1,0.00039452,6]
[327594293,1716246691587,-500.0,0.00039452,6]
[327594294,1716246691597,-730.92,0.00039452,6]
[327594295,1716246691607,-500.0,0.00039452,6]
[327594296,1716246691616,-500.0,0.00039452,6]
[327594297,1716246691626,-500.0,0.00039452,6]
[327594298,1716246691635,-500.0,0.00039452,6]
[327594299,1716246691645,-518.96,0.00039452,6]
[327594300,1716246691655,-500.0,0.00039452,6]
[327594301,1716246691664,-845.4,0.00039452,6]
[327594302,1716246691674,-500.0,0.00039452,6]
[327594303,1716246691683,-500.0,0.00039452,6]
[327594304,1716246691693,-500.0,0.00039452,6]
[327594305,1716246691703,-500.0,0.00039452,6]
[327594306,1716246691712,-500.0,0.00039452,6]
[327594307,1716246691727,-943.0,0.00039452,6]
[327594308,1716246691737,-500.0,0.00039452,6]
[327594309,1716246691746,-2029.67,0.00039452,6]
[327594310,1716246691756,-600.08,0.00039452,6]
[327594311,1716246691765,-500.0,0.00039452,6]
[327594312,1716246691775,-1632.55,0.00039452,6]
[327594313,1716246691784,-993.96,0.00039452,6]
[327594314,1716246691795,-500.0,0.00039452,6]
[327594315,1716246691805,-2697.76,0.00039452,6]
[327594316,1716246691815,-672.55,0.00039452,6]
[327594317,1716246691825,-500.0,0.00039452,6]
[327594318,1716246691835,-500.0,0.00039452,6]
[327594319,1716246691845,-2579.25,0.00039452,6]
[327594320,1716246691855,-500.0,0.00039452,6]
[327594321,1716246691865,-497.61132718,0.00039452,6]
[327594322,1716246691875,-753.5,0.00039452,6]
[327594323,1716246691885,-500.0,0.00039452,6]
[327594324,1716246691894,-556.27,0.00039452,6]
[327594325,1716246691904,-746.05,0.00039452,6]
[327594326,1716246691914,-500.0,0.00039452,6]
[327594327,1716246691924,-2961.76,0.00039452,6]
[327594328,1716246691933,-503.5,0.00039452,6]
[327594329,1716246691944,-927.4,0.00039452,6]
[327594330,1716246691954,-500.0,0.00039452,6]
[327594331,1716246691964,-1132.12,0.00039452,6]
[327594332,1716246691973,-500.0,0.00039452,6]
[327594333,1716246691983,-2461.65,0.00039452,6]
[327594334,1716246691993,-500.0,0.00039452,6]
[327594335,1716246692002,-572.93,0.00039452,6]
[327594336,1716246692012,-509.06365527,0.00039452,6]
[327594337,1716246692021,-758.78,0.00039452,6]
[327594338,1716246692031,-941.32,0.00039452,6]
[327594339,1716246692042,-647.92,0.00039452,6]
[327594340,1716246692052,-754.24,0.00039452,6]
[327594341,1716246692062,-927.56,0.00039452,6]
[327594342,1716246692072,-985.81,0.00039452,6]
[327594343,1716246692082,-500.0,0.00039452,6]
[327594344,1716246692092,-155.07614008,0.00039452,6]
[327594345,1716246692102,-630.95755359,0.00039452,6]
[327594346,1716246692112,-500.0,0.00039452,6]
[327594347,1716246692122,-500.0,0.00039452,6]
[327594348,1716246692132,-1104.02,0.00039452,6]
[327594349,1716246692142,-500.0,0.00039452,6]
[327594350,1716246692152,-503.09976717,0.00039452,6]
[327594351,1716246692162,-500.0,0.00039452,6]
[327594352,1716246692173,-500.0,0.00039452,6]
[327594353,1716246692183,-792.6,0.00039452,6]
[327594354,1716246692194,-500.0,0.00039452,6]
[327594355,1716246692204,-617.08,0.00039452,6]
[327594356,1716246692214,-500.0,0.00039452,6]
[327594357,1716246692224,-500.0,0.00039452,6]
[327594358,1716246692235,-500.0,0.00039452,6]
[327594359,1716246692245,-634.79,0.00039452,6]
[327594360,1716246692255,-1259.65,0.00039452,6]
[327594361,1716246692265,-831.31,0.00039452,6]
[327594362,1716246692279,-736.73,0.00039452,6]
[327594363,1716246692289,-1076.13,0.00039452,6]
[327594364,1716246692300,-500.0,0.00039452,6]
[327594365,1716246692310,-500.0,0.00039452,6]
[327594366,1716246692322,-500.0,0.00039452,6]
[327594367,1716246692332,-708.05,0.00039452,6]
[327594368,1716246692341,-500.0,0.00039452,6]
[327594369,1716246692351,-799.55,0.00039452,6]
[327594370,1716246692364,-500.0,0.00039452,6]
[327594371,1716246692374,-525.88,0.00039452,6]
[327594372,1716246692384,-500.0,0.00039452,6]
[327594373,1716246692394,-500.0,0.00039452,6]
[327594374,1716246692404,-557.25,0.00039452,6]
[327594375,1716246692414,-1539.84,0.00039452,6]
[327594376,1716246692424,-895.98,0.00039452,6]
[327594377,1716246692435,-1421.85,0.00039452,6]
[327594378,1716246692445,-662.61,0.00039452,6]
[327594379,1716246692456,-1435.77,0.00039452,6]
[327594380,1716246692466,-2414.62,0.00039452,6]
[327594381,1716246692476,-500.0,0.00039452,6]
[327594382,1716246692486,-879.69,0.00039452,6]
[327594383,1716246692496,-951.29,0.00039452,6]
[327594384,1716246692506,-604.04,0.00039452,6]
[327594385,1716246692515,-500.0,0.00039452,6]
[327594386,1716246692526,-500.0,0.00039452,6]
[327594387,1716246692535,-3136.74,0.00039452,6]
[327594388,1716246692547,-1442.9,0.00039452,6]
[327594389,1716246692557,-500.0,0.00039452,6]
[327594390,1716246692567,-1961.17,0.00039452,6]
[327594391,1716246692577,-791.88,0.00039452,6]
[327594392,1716246692587,-894.39,0.00039452,6]
[327594393,1716246692596,-520.8,0.00039452,6]
[327594394,1716246692606,-500.0,0.00039452,6]
[327594395,1716246692616,-725.42,0.00039452,6]
[327594396,1716246692626,-500.0,0.00039452,6]
[327594397,1716246692636,-1938.62,0.00039452,6]
[327594398,1716246692645,-4036.03,0.00039452,6]
[327594399,1716246692656,-1362.4,0.00039452,6]
[327594400,1716246692666,-780.48,0.00039452,6]
[327594401,1716246692677,-500.0,0.00039452,6]
[327594402,1716246692688,-500.0,0.00039452,6]
[327594403,1716246692697,-807.71,0.00039452,6]
[327594404,1716246692707,-3051.63,0.00039452,6]
[327594405,1716246692955,-500.0,0.00039452,6]
[327594406,1716246692965,-2414.61,0.00039452,6]
[327594407,1716246692975,-1130.78,0.00039452,6]
[327594408,1716246692984,-500.0,0.00039452,6]
[327594409,1716246692994,-695.86,0.00039452,6]
[327594410,1716246693004,-2271.07,0.00039452,6]
[327594411,1716246693013,-1137.07,0.00039452,6]
[327594412,1716246693023,-500.0,0.00039452,6]
[327594413,1716246693032,-574.89,0.00039452,6]
[327594414,1716246693042,-718.61,0.00039452,6]
[327594415,1716246693052,-500.0,0.00039452,6]
[327594416,1716246693061,-500.0,0.00039452,6]
[327594417,1716246693070,-2685.19,0.00039452,6]
[327594418,1716246693079,-963.56,0.00039452,6]
[327594419,1716246693089,-12639.53,0.00039452,6]
[327594420,1716246693098,-611.78,0.00039452,6]
[327594421,1716246693108,-500.0,0.00039452,6]
[327594422,1716246693117,-500.0,0.00039452,6]
[327594423,1716246693127,-500.0,0.00039452,6]
[327594424,1716246693136,-971.36,0.00039452,6]
[327594425,1716246693146,-947.87,0.00039452,6]
[327594426,1716246693156,-500.0,0.00039452,6]
[327594427,1716246693165,-571.47,0.00039452,6]
[327594428,1716246693175,-500.0,0.00039452,6]
[327594429,1716246693184,-944.79,0.00039452,6]
[327594430,1716246693193,-500.0,0.00039452,6]
[327594431,1716246693203,-500.0,0.00039452,6]
[327594432,1716246693212,-1067.43,0.00039452,6]
[327594433,1716246693222,-500.0,0.00039452,6]
[327594434,1716246693231,-562.5,0.00039452,6]
[327594435,1716246693240,-683.74,0.00039452,6]
[327594436,1716246693249,-500.0,0.00039452,6]
[327594437,1716246693258,-1724.29,0.00039452,6]
[327594438,1716246693268,-923.34,0.00039452,6]
[327594439,1716246693279,-500.0,0.00039452,6]
[327594440,1716246693290,-500.0,0.00039452,6]
[327594441,1716246693302,-779.79,0.00039452,6]
[327594442,1716246693311,-502.0,0.00039452,6]
[327594443,1716246693321,-1525.72,0.00039452,6]
[327594444,1716246693330,-2922.18,0.00039452,6]
[327594445,1716246693339,-317.05642856,0.00039452,6]
[327594446,1716246693348,-1161.04,0.00039452,6]
[327594447,1716246693359,-307.45452556,0.00039452,6]
[327594448,1716246693369,-524.13,0.00039452,6]
[327594449,1716246693379,-545.77,0.00039452,6]
[327594450,1716246693388,-500.0,0.00039452,6]
[327594451,1716246693398,-630.03,0.00039452,6]
[327594452,1716246693408,-861.32,0.00039452,6]
[327594453,1716246693417,-500.0,0.00039452,6]
[327594454,1716246693427,-2128.47,0.00039452,6]
[327594455,1716246693437,-500.0,0.00039452,6]
[327594456,1716246693446,-500.0,0.00039452,6]
[327594457,1716246693456,-500.0,0.00039452,6]
[327594458,1716246693466,-2220.7,0.00039452,6]
[327594459,1716246693475,-914.66,0.00039452,6]
[327594460,1716246693485,-500.0,0.00039452,6]
[327594461,1716246693494,-911.76,0.00039452,6]
[327594462,1716246693504,-500.0,0.00039452,6]
[327594463,1716246693513,-500.0,0.00039452,6]
[327594464,1716246693522,-500.0,0.00039452,6]
[327594465,1716246693531,-14835.39,0.00039452,6]
[327594466,1716246693540,-500.0,0.00039452,6]
[327594467,1716246693551,-1136.76,0.00039452,6]
[327594468,1716246693561,-448.00157865,0.00039452,6]
[327594469,1716246693570,-1076.64,0.00039452,6]
[327594470,1716246693580,-500.0,0.00039452,6]
[327594471,1716246693590,-500.0,0.00039452,6]
[327594472,1716246693599,-300.0,0.00039452,6]
[327594473,1716246693609,-500.0,0.00039452,6]
[327594474,1716246693618,-1632.26,0.00039452,6]
[327594475,1716246693627,-500.0,0.00039452,6]
[327594476,1716246693637,-396.26893701,0.00039452,6]
[327594477,1716246693647,-3218.12,0.00039452,6]
[327594478,1716246693656,-2995.28,0.00039452,6]
[327594479,1716246693665,-500.0,0.00039452,6]
[327594480,1716246693675,-500.0,0.00039452,6]
[327594481,1716246693684,-582.73,0.00039452,6]
[327594482,1716246693694,-500.0,0.00039452,6]
[327594483,1716246693704,-841.3,0.00039452,6]
[327594484,1716246693713,-500.0,0.00039452,6]
[327594485,1716246693723,-4565.77,0.00039452,6]
[327594486,1716246693732,-500.0,0.00039452,6]
[327594487,1716246693742,-1994.33,0.00039452,6]
[327594488,1716246693752,-976.12,0.00039452,6]
[327594489,1716246693761,-584.28,0.00039452,6]
[327594490,1716246693772,-597.82,0.00039452,6]
[327594491,1716246693782,-1108.56,0.00039452,6]
[327594492,1716246693791,-2271.52,0.00039452,6]
[327594493,1716246693802,-500.0,0.00039452,6]
[327594494,1716246693812,-1570.11,0.00039452,6]
[327594495,1716246693822,-534.04,0.00039452,6]
[327594496,1716246693832,-500.0,0.00039452,6]
[327594497,1716246693842,-2261.65,0.00039452,6]
[327594498,1716246693851,-792.28,0.00039452,6]
[327594499,1716246693861,-1993.23,0.00039452,6]
[327594500,1716246693870,-500.0,0.00039452,6]
[327594501,1716246693880,-500.0,0.00039452,6]
[327594502,1716246693890,-500.0,0.00039452,6]
[327594503,1716246693900,-500.0,0.00039452,6]
[327594504,1716246693910,-1301.28,0.00039452,6]
[327594505,1716246693920,-500.0,0.00039452,6]
[327594506,1716246693930,-3748.37,0.00039452,6]
[327594507,1716246693940,-500.0,0.00039452,6]
[327594508,1716246693950,-765.75,0.00039452,6]
[327594509,1716246693960,-1266.67,0.00039452,6]
[327594510,1716246693970,-676.8,0.00039452,6]
[327594511,1716246693979,-500.0,0.00039452,6]
[327594512,1716246693988,-500.0,0.00039452,6]
[327594513,1716246693998,-4952.35,0.00039452,6]
[327594514,1716246694008,-500.0,0.00039452,6]
[327594515,1716246694018,-500.0,0.00039452,6]
[327594516,1716246694028,-536.36,0.00039452,6]
[327594517,1716246694038,-500.58,0.00039452,6]
[327594518,1716246694049,-590.29,0.00039452,6]
[327594519,1716246694059,-1182.23,0.00039452,6]
[327594520,1716246694069,-1508.14,0.00039452,6]
[327594521,1716246694078,-1300.62,0.00039452,6]
[327594522,1716246694088,-2911.32,0.00039452,6]
[327594523,1716246694098,-500.0,0.00039452,6]
[327594524,1716246694108,-500.0,0.00039452,6]
[327594525,1716246694119,-1284.66,0.00039452,6]
[327594526,1716246694129,-2262.09,0.00039452,6]
[327594527,1716246694139,-2061.94,0.00039452,6]
[327594528,1716246694149,-500.0,0.00039452,6]
[327594529,1716246694158,-500.0,0.00039452,6]
[327594530,1716246694168,-459.82,0.00039452,6]
[327594531,1716246694178,-500.0,0.00039452,6]
[327594532,1716246694187,-500.0,0.00039452,6]
[327594533,1716246694197,-1603.66,0.00039452,6]
[327594534,1716246694206,-500.0,0.00039452,6]
[327594535,1716246694215,-724.94,0.00039452,6]
[327594536,1716246694225,-910.42,0.00039452,6]
[327594537,1716246694234,-2658.61,0.00039452,6]
[327594538,1716246694244,-2717.97,0.00039452,6]
[327594539,1716246694253,-560.38,0.00039452,6]
[327594540,1716246694263,-500.0,0.00039452,6]
[327594541,1716246694272,-500.0,0.00039452,6]
[327594542,1716246694285,-642.93,0.00039452,6]
[327594543,1716246694295,-500.0,0.00039452,6]
[327594544,1716246694306,-500.0,0.00039452,6]
[327594545,1716246694317,-585.08,0.00039452,6]
[327594546,1716246694327,-500.0,0.00039452,6]
[327594547,1716246694337,-1173.96,0.00039452,6]
[327594548,1716246694347,-11507.31,0.00039452,6]
[327594549,1716246694359,-507.93,0.00039452,6]
[327594550,1716246694368,-1614.17,0.00039452,6]
[327594551,1716246694378,-2080.1,0.00039452,6]
[327594552,1716246694388,-2750.87,0.00039452,6]
[327594553,1716246694398,-1543.41,0.00039452,6]
[327594554,1716246694407,-500.0,0.00039452,6]
[327594555,1716246694417,-500.0,0.00039452,6]
[327594556,1716246694427,-500.0,0.00039452,6]
[327594557,1716246694436,-899.29,0.00039452,6]
[327594558,1716246694446,-500.0,0.00039452,6]
[327594559,1716246694455,-788.25,0.00039452,6]
[327594560,1716246694466,-544.47,0.00039452,6]
[327594561,1716246694475,-616.96,0.00039452,6]
[327594562,1716246694485,-31050.72,0.00039452,6]
[327594563,1716246694495,-4184.73,0.00039452,6]
[327594564,1716246694505,-7122.67,0.00039452,6]
[327594565,1716246694515,-4614.9,0.00039452,6]
[327594566,1716246694525,-500.0,0.00039452,6]
[327594567,1716246694534,-500.0,0.00039452,6]
[327594568,1716246694544,-5543.31,0.00039452,6]
[327594569,1716246694554,-1683.02,0.00039452,6]
[327594570,1716246694564,-500.0,0.00039452,6]
[327594571,1716246694574,-500.0,0.00039452,6]
[327594572,1716246694594,-1595.19,0.00039452,6]
[327594573,1716246694606,-500.0,0.00039452,6]
[327594574,1716246694616,-6630.33,0.00039452,6]
[327594575,1716246694626,-1219.42,0.00039452,6]
[327594576,1716246694637,-2891.57,0.00039452,6]
[327594577,1716246694647,-500.0,0.00039452,6]
[327594578,1716246694657,-429.53030177,0.00039452,6]
[327594579,1716246694668,-1113.18,0.00039452,6]
[327594580,1716246694678,-2085.53,0.00039452,6]
[327594581,1716246694688,-2048.08,0.00039452,6]
[327594582,1716246694699,-500.0,0.00039452,6]
[327594583,1716246694709,-523.70900383,0.00039452,6]
[327594584,1716246694719,-1299.94,0.00039452,6]
[327594585,1716246694729,-1272.93,0.00039452,6]
[327594586,1716246694739,-632.26,0.00039452,6]
[327594587,1716246694749,-2573.28,0.00039452,6]
[327594588,1716246694759,-500.0,0.00039452,6]
[327594589,1716246694769,-2405.47,0.00039452,6]
[327594590,1716246694779,-500.0,0.00039452,6]
[327594591,1716246694789,-500.0,0.00039452,6]
[327594592,1716246694800,-2338.09,0.00039452,6]
[327594593,1716246694810,-1007.81,0.00039452,6]
[327594594,1716246694820,-2108.8,0.00039452,6]
[327594595,1716246694830,-520.24,0.00039452,6]
[327594596,1716246694840,-500.0,0.00039452,6]
[327594597,1716246694850,-1893.27,0.00039452,6]
[327594598,1716246694861,-734.1,0.00039452,6]
[327594599,1716246694871,-500.0,0.00039452,6]
[327594600,1716246694881,-677.98,0.00039452,6]
[327594601,1716246694892,-882.42,0.00039452,6]
[327594602,1716246694902,-500.0,0.00039452,6]
[327594603,1716246694914,-3113.46,0.00039452,6]
[327594604,1716246694927,-4139.38,0.00039452,6]
[327594605,1716246694938,-500.0,0.00039452,6]
[327594606,1716246694951,-500.0,0.00039452,6]
[327594607,1716246694963,-457.88,0.00039452,6]
[327594608,1716246694974,-500.0,0.00039452,6]
[327594609,1716246694984,-760.9,0.00039452,6]
[327594610,1716246694996,-1940.07,0.00039452,6]
[327594611,1716246695008,-956.04,0.00039452,6]
[327594612,1716246695018,-1757.53,0.00039452,6]
[327594613,1716246695028,-753.42,0.00039452,6]
[327594614,1716246695038,-500.0,0.00039452,6]
[327594615,1716246695049,-500.0,0.00039452,6]
[327594616,1716246695059,-629.59,0.00039452,6]
[327594617,1716246695069,-14738.93,0.00039452,6]
[327594618,1716246695079,-671.07,0.00039452,6]
[327594619,1716246695088,-1023.5,0.00039452,6]
[327594620,1716246695098,-2171.15,0.00039452,6]
[327594621,1716246695108,-3863.43,0.00039452,6]
[327594622,1716246695117,-500.0,0.00039452,6]
[327594623,1716246695128,-500.0,0.00039452,6]
[327594624,1716246695137,-6770.41,0.00039452,6]
[327594625,1716246695147,-1544.75,0.00039452,6]
[327594626,1716246695157,-620.75,0.00039452,6]
[327594627,1716246695167,-781.34,0.00039452,6]
[327594628,1716246695177,-2604.97,0.00039452,6]
[327594629,1716246695186,-676.73,0.00039452,6]
[327594630,1716246695196,-500.0,0.00039452,6]
[327594631,1716246695205,-500.0,0.00039452,6]
[327594632,1716246695215,-649.57,0.00039452,6]
[327594633,1716246695224,-500.0,0.00039452,6]
[327594634,1716246695234,-2650.42,0.00039452,6]
[327594635,1716246695243,-1701.73,0.00039452,6]
[327594636,1716246695253,-500.0,0.00039452,6]
[327594637,1716246695263,-859.441913,0.00039452,14]
[327594638,1716246695273,-500.0,0.00039452,6]
[327594639,1716246695286,-500.0,0.00039452,6]
[327594640,1716246695296,-3097.94,0.00039452,6]
[327594641,1716246695308,-556.28,0.00039452,6]
[327594642,1716246695319,-742.83,0.00039452,6]
[327594643,1716246695330,-500.0,0.00039452,6]
[327594644,1716246695340,-756.34,0.00039452,6]
[327594645,1716246695351,-1017.67,0.00039452,6]
[327594646,1716246695362,-372.12846121,0.00039452,6]
[327594647,1716246696110,-670.66153879,0.00039452,6]
[327594648,1716246696121,-859.441913,0.00039452,14]
[327594649,1716246696131,-1495.18202274,0.00039452,6]
[327594650,1716246696143,-1871.14797726,0.00039452,6]
[327594651,1716246696153,-1471.35655608,0.00039452,6]
[327594652,1716246696166,-362.48,0.00039452,6]
[327594653,1716246696179,-211.27344392,0.00039452,6]
[327594654,1716246696188,-500.0,0.00039452,6]
[327594655,1716246696198,-179.28411603,0.00039452,6]
[327594656,1716246697174,-292.00081544,0.00031506,2]
[327594657,1716246697187,-663.82251703,0.00031506,2]
[327594658,1716246697197,-330.74149735,0.00038356,6]
[327594659,1716246697208,-169.25850265,0.00038356,6]
[327594660,1716246697219,-875.2,0.00038356,6]
[327594661,1716246697230,-500.0,0.00038356,6]
[327594662,1716246697240,-500.0,0.00038356,6]
[327594663,1716246697250,-500.0,0.00038356,6]
[327594664,1716246697260,-500.0,0.00038356,6]
[327594665,1716246697269,-500.0,0.00038356,6]
[327594666,1716246697281,-914.80489767,0.0003853,2]
[327594667,1716246697292,-151.0,0.0003863,14]
[327594668,1716246697303,-500.0,0.0003863,6]
[327594669,1716246697312,-875.2,0.0003863,6]
[327594670,1716246697322,-500.0,0.0003863,6]
[327594671,1716246697332,-151.0,0.0003863,14]
[327594672,1716246697342,-500.0,0.0003863,6]
[327594673,1716246697351,-500.0,0.0003863,6]
[327594674,1716246697363,-500.0,0.0003863,6]
[327594675,1716246697372,-500.0,0.0003863,6]
[327594676,1716246697381,-151.0,0.00038904,14]
[327594677,1716246697390,-170.266586,0.00038904,14]
[327594678,1716246697399,-500.0,0.00038904,6]
[327594679,1716246697408,-875.2,0.00038904,6]
[327594680,1716246697417,-500.0,0.00038904,6]
[327594681,1716246697426,-151.0,0.00038904,14]
[327594682,1716246697436,-500.0,0.00038904,6]
[327594683,1716246697445,-151.0,0.00038904,14]
[327594684,1716246697455,-500.0,0.00038904,6]
[327594685,1716246697464,-500.0,0.00038904,6]